fUSD/lending_fUSD_20250205
["ID","MTS","AMOUNT","RATE_DAILY","PERIOD"]
[351725581,1738767035445,-434.23,9.484e-05,2]
[351725582,1738767035455,-500.0,9.484e-05,2]
[351725583,1738767035465,-500.0,9.484e-05,2]
[351725584,1738767035476,-500.0,9.484e-05,2]
[351725585,1738767035487,-312.01,9.484e-05,2]
[351725586,1738767035497,-500.0,9.484e-05,2]
[351725587,1738767035507,-500.0,9.484e-05,2]
[351725588,1738767035518,-500.0,9.484e-05,2]
[351725589,1738767035528,-500.0,9.621e-05,2]
[351725590,1738767035539,-500.0,9.621e-05,2]
[351725591,1738767035550,-616.27,9.621e-05,2]
[351725592,1738767035560,-442.02,9.621e-05,2]
[351725593,1738767035571,-500.0,9.621e-05,2]
[351725594,1738767035582,-500.0,9.621e-05,2]
[351725595,1738767035593,-500.0,9.621e-05,2]
[351725596,1738767035603,-308.83,9.621e-05,2]
[351725597,1738767035614,-500.0,9.621e-05,2]
[351725598,1738767035624,-500.0,9.621e-05,2]
[351725599,1738767035634,-500.0,9.621e-05,2]
[351725600,1738767035644,-500.0,9.621e-05,2]
[351725601,1738767035657,-500.0,9.621e-05,2]
[351725602,1738767035668,-500.0,9.621e-05,2]
[351725603,1738767035678,-500.0,9.621e-05,2]
[351725604,1738767035688,-500.0,9.621e-05,2]
[351725605,1738767035699,-500.0,9.621e-05,2]
[351725606,1738767035709,-500.0,9.621e-05,2]
[351725607,1738767035719,-500.0,9.621e-05,2]
[351725608,1738767035729,-500.0,9.621e-05,2]
[351725609,1738767035739,-500.0,9.621e-05,2]
[351725610,1738767035749,-500.0,9.621e-05,2]
[351725611,1738767035759,-500.0,9.621e-05,2]
[351725612,1738767035770,-500.0,9.621e-05,2]
[351725613,1738767035781,-945.05,9.746e-05,2]
[351725614,1738767035792,-502.27862366,9.747e-05,2]
[351725615,1738767035802,-500.0,9.747e-05,2]
[351725616,1738767035812,-503.39689167,9.747e-05,2]
[351725617,1738767035822,-500.0,9.747e-05,2]
[351725618,1738767035832,-500.0,9.747e-05,2]
[351725619,1738767035842,-500.0,9.747e-05,2]
[351725620,1738767035852,-518.67913657,9.747e-05,2]
[351725621,1738767035862,-510.23268366,9.747e-05,2]
[351725622,1738767035872,-500.0,9.747e-05,2]
[351725623,1738767035883,-500.68460173,9.747e-05,2]
[351725624,1738767035892,-504.86958381,9.747e-05,2]
[351725625,1738767035902,-500.0,9.747e-05,2]
[351725626,1738767035913,-500.0,9.747e-05,2]
[351725627,1738767035924,-500.0,9.747e-05,2]
[351725628,1738767035935,-500.0,9.747e-05,2]
[351725629,1738767035947,-500.0,9.747e-05,2]
[351725630,1738767035957,-500.0,9.747e-05,2]
[351725631,1738767035969,-300.0,9.747e-05,2]
[351725632,1738767035979,-500.0,9.747e-05,2]
[351725633,1738767035989,-500.0,9.747e-05,2]
[351725634,1738767035999,-500.0,9.747e-05,2]
[351725635,1738767036009,-500.0,9.747e-05,2]
[351725636,1738767036019,-500.0,9.747e-05,2]
[351725637,1738767036030,-500.0,9.747e-05,2]
[351725638,1738767036041,-500.0,9.747e-05,2]
[351725639,1738767036050,-500.0,9.747e-05,2]
[351725640,1738767036060,-500.0,9.747e-05,2]
[351725641,1738767036070,-500.0,9.747e-05,2]
[351725642,1738767036080,-500.0,9.747e-05,2]
[351725643,1738767036090,-362.63209638,9.758e-05,2]
[351725644,1738767036101,-630.69,9.758e-05,2]
[351725645,1738767036111,-616.27,9.758e-05,2]
[351725646,1738767036121,-520.76,9.758e-05,2]
[351725647,1738767036130,-500.0,9.758e-05,2]
[351725648,1738767036140,-500.0,9.758e-05,2]
[351725649,1738767036149,-500.0,9.758e-05,2]
[351725650,1738767036160,-500.0,9.758e-05,2]
[351725651,1738767036171,-500.0,9.758e-05,2]
[351725652,1738767036181,-500.0,9.758e-05,2]
[351725653,1738767036191,-500.0,9.758e-05,2]
[351725654,1738767036201,-500.0,9.758e-05,2]
[351725655,1738767036210,-500.0,9.758e-05,2]
[351725656,1738767036219,-500.0,9.758e-05,2]
[351725657,1738767036229,-500.0,9.758e-05,2]
[351725658,1738767036238,-500.0,9.758e-05,2]
[351725659,1738767036248,-500.0,9.758e-05,2]
[351725660,1738767036258,-500.0,9.758e-05,2]
[351725661,1738767036267,-500.0,9.758e-05,2]
[351725662,1738767036277,-500.0,9.758e-05,2]
[351725663,1738767036287,-500.0,9.758e-05,2]
[351725664,1738767036296,-500.0,9.758e-05,2]
[351725665,1738767036306,-275.4,9.788e-05,2]
[351725666,1738767036316,-500.0,9.797e-05,2]
[351725667,1738767036327,-500.0,9.797e-05,2]
[351725668,1738767036337,-500.0,9.797e-05,2]
[351725669,1738767036347,-500.0,9.797e-05,2]
[351725670,1738767036357,-500.0,9.797e-05,2]
[351725671,1738767036367,-500.0,9.797e-05,2]
[351725672,1738767036378,-500.0,9.797e-05,2]
[351725673,1738767036388,-500.0,9.797e-05,2]
[351725674,1738767036398,-596.67,9.797e-05,2]
[351725675,1738767036411,-500.0,9.797e-05,2]
[351725676,1738767036421,-500.0,9.797e-05,2]
[351725677,1738767036432,-500.0,9.797e-05,2]
[351725678,1738767036441,-500.0,9.797e-05,2]
[351725679,1738767036451,-500.0,9.797e-05,2]
[351725680,1738767036461,-512.20393647,9.797e-05,2]
[351725681,1738767036471,-500.0,9.798e-05,2]
[351725682,1738767036482,-500.0,9.798e-05,2]
[351725683,1738767036492,-500.0,9.798e-05,2]
[351725684,1738767036502,-500.0,9.798e-05,2]
[351725685,1738767036671,-500.0,9.798e-05,2]
[351725686,1738767036689,-359.83,9.798e-05,2]
[351725687,1738767036700,-500.0,9.798e-05,2]
[351725688,1738767036710,-500.0,9.798e-05,2]
[351725689,1738767036721,-500.0,9.798e-05,2]
[351725690,1738767036730,-500.0,9.798e-05,2]
[351725691,1738767036740,-500.0,9.798e-05,2]
[351725692,1738767036750,-338.60818792,9.798e-05,2]
[351725693,1738767036759,-500.0,9.798e-05,2]
[351725694,1738767036770,-500.0,9.798e-05,2]
[351725695,1738767036779,-500.0,9.863e-05,2]
[351725696,1738767036790,-500.0,9.88e-05,2]
[351725697,1738767036800,-500.0,9.88e-05,2]
[351725698,1738767036810,-500.0,9.88e-05,2]
[351725699,1738767036820,-500.0,9.88e-05,2]
[351725700,1738767036829,-500.0,9.88e-05,2]
[351725701,1738767036838,-500.0,9.88e-05,2]
[351725702,1738767036848,-500.0,9.88e-05,2]
[351725703,1738767036859,-500.0,9.88e-05,2]
[351725704,1738767036869,-500.0,9.88e-05,2]
[351725705,1738767036882,-500.0,9.88e-05,2]
[351725706,1738767036892,-670.66,9.88e-05,2]
[351725707,1738767036902,-502.32,9.88e-05,2]
[351725708,1738767036911,-500.0,9.88e-05,2]
[351725709,1738767036922,-500.0,9.88e-05,2]
[351725710,1738767036931,-1080.709771,9.88e-05,2]
[351725711,1738767036941,-500.0,9.88e-05,2]
[351725712,1738767036950,-500.0,9.881e-05,2]
[351725713,1738767036962,-500.0,9.881e-05,2]
[351725714,1738767036971,-500.0,9.881e-05,2]
[351725715,1738767036980,-500.0,9.881e-05,2]
[351725716,1738767036990,-500.0,9.881e-05,2]
[351725717,1738767037001,-500.0,9.881e-05,2]
[351725718,1738767037011,-298.26647507,9.881e-05,2]
[351725719,1738767037020,-500.0,9.881e-05,2]
[351725720,1738767037031,-500.0,9.881e-05,2]
[351725721,1738767037042,-500.0,9.881e-05,2]
[351725722,1738767037052,-500.0,9.881e-05,2]
[351725723,1738767037063,-270.28,9.881e-05,2]
[351725724,1738767037073,-500.0,9.881e-05,2]
[351725725,1738767037083,-500.0,9.881e-05,2]
[351725726,1738767037094,-500.0,9.881e-05,2]
[351725727,1738767037104,-500.0,9.881e-05,2]
[351725728,1738767037114,-500.0,9.881e-05,2]
[351725729,1738767037124,-500.0,9.881e-05,2]
[351725730,1738767037134,-500.0,9.881e-05,2]
[351725731,1738767037144,-1110.974583,9.881e-05,2]
[351725732,1738767037157,-500.0,9.881e-05,2]
[351725733,1738767037167,-500.0,9.881e-05,2]
[351725734,1738767037178,-500.0,9.881e-05,2]
[351725735,1738767037189,-572.45,9.881e-05,2]
[351725737,1738767037201,-500.0,9.881e-05,2]
[351725738,1738767037211,-2299.36,9.881e-05,2]
[351725739,1738767037222,-1801.42,9.881e-05,2]
[351725740,1738767037232,-500.0,9.881e-05,2]
[351725741,1738767037242,-500.0,9.881e-05,2]
[351725742,1738767037252,-500.0,9.881e-05,2]
[351725743,1738767037262,-924.03,9.881e-05,2]
[351725744,1738767037272,-500.0,9.881e-05,2]
[351725745,1738767037283,-291.92,9.881e-05,2]
[351725746,1738767037294,-500.0,9.881e-05,2]
[351725747,1738767037305,-500.0,9.881e-05,2]
[351725748,1738767037315,-500.0,9.881e-05,2]
[351725749,1738767037325,-424.6,9.881e-05,2]
[351725750,1738767037335,-500.0,9.881e-05,2]
[351725751,1738767037345,-500.0,9.881e-05,2]
[351725752,1738767037354,-722.17,9.881e-05,2]
[351725753,1738767037364,-500.0,9.881e-05,2]
[351725754,1738767037374,-500.0,9.881e-05,2]
[351725755,1738767037384,-599.35,9.882e-05,2]
[351725756,1738767037394,-500.0,9.882e-05,2]
[351725757,1738767037405,-500.0,9.882e-05,2]
[351725758,1738767037415,-500.0,9.882e-05,2]
[351725759,1738767037425,-195.39,9.882e-05,2]
[351725760,1738767037435,-500.0,9.882e-05,2]
[351725761,1738767037445,-500.0,9.882e-05,2]
[351725762,1738767037455,-500.0,9.882e-05,2]
[351725763,1738767037465,-500.0,9.882e-05,2]
[351725764,1738767037475,-500.0,9.882e-05,2]
[351725765,1738767037485,-500.0,9.882e-05,2]
[351725766,1738767037495,-500.0,9.882e-05,2]
[351725767,1738767037504,-500.0,9.882e-05,2]
[351725768,1738767037514,-500.0,9.882e-05,2]
[351725769,1738767037525,-500.0,9.882e-05,2]
[351725770,1738767037535,-500.0,9.882e-05,2]
[351725771,1738767037545,-500.0,9.882e-05,2]
[351725772,1738767037555,-500.0,9.882e-05,2]
[351725773,1738767037565,-500.0,9.882e-05,2]
[351725774,1738767037575,-500.0,9.882e-05,2]
[351725775,1738767037585,-500.0,9.882e-05,2]
[351725776,1738767037595,-500.0,9.882e-05,2]
[351725777,1738767037604,-500.0,9.882e-05,2]
[351725778,1738767037614,-500.0,9.882e-05,2]
[351725779,1738767037623,-500.0,9.882e-05,2]
[351725780,1738767037633,-500.0,9.882e-05,2]
[351725781,1738767037642,-768.34,9.882e-05,2]
[351725782,1738767037652,-500.0,9.882e-05,2]
[351725783,1738767037662,-563.47,9.882e-05,2]
[351725784,1738767037672,-500.0,9.882e-05,2]
[351725785,1738767037683,-500.0,9.882e-05,2]
[351725786,1738767037692,-500.0,9.882e-05,2]
[351725787,1738767037702,-335.3,9.882e-05,2]
[351725788,1738767037712,-570.8,9.882e-05,2]
[351725789,1738767037721,-500.0,9.882e-05,2]
[351725790,1738767037733,-1180.35,9.882e-05,2]
[351725791,1738767037743,-500.0,9.882e-05,2]
[351725792,1738767037753,-601.53,9.882e-05,2]
[351725793,1738767037763,-500.0,9.882e-05,2]
[351725794,1738767037772,-500.0,9.882e-05,2]
[351725795,1738767037782,-500.0,9.882e-05,2]
[351725796,1738767037792,-500.0,9.882e-05,2]
[351725797,1738767037802,-500.0,9.882e-05,2]
[351725798,1738767037811,-500.0,9.882e-05,2]
[351725799,1738767037821,-705.72,9.882e-05,2]
[351725801,1738767037831,-500.0,9.882e-05,2]
[351725803,1738767037840,-500.0,9.882e-05,2]
[351725804,1738767037850,-500.0,9.882e-05,2]
[351725806,1738767037860,-500.0,9.882e-05,2]
[351725808,1738767037870,-500.0,9.882e-05,2]
[351725810,1738767037886,-500.0,9.882e-05,2]
[351725812,1738767037896,-500.0,9.882e-05,2]
[351725814,1738767037907,-500.0,9.882e-05,2]
[351725816,1738767037918,-395.3,9.882e-05,2]
[351725817,1738767037927,-629.28,9.882e-05,2]
[351725819,1738767037937,-347.43,9.882e-05,2]
[351725821,1738767037946,-2419.59,9.882e-05,2]
[351725823,1738767037959,-500.0,9.882e-05,2]
[351725825,1738767037969,-500.0,9.882e-05,2]
[351725827,1738767037978,-500.0,9.882e-05,2]
[351725828,1738767037988,-500.0,9.882e-05,2]
[351725830,1738767037997,-500.0,9.882e-05,2]
[351725832,1738767038007,-500.0,9.882e-05,2]
[351725834,1738767038017,-500.0,9.882e-05,2]
[351725835,1738767038026,-500.0,9.882e-05,2]
[351725837,1738767038036,-3057.502,9.884e-05,2]
[351725839,1738767038046,-150.0,9.884e-05,2]
[351725841,1738767038056,-2701.628,9.89e-05,2]
[351725842,1738767038065,-187.306,9.89e-05,2]
[351725844,1738767038075,-616.27,9.895e-05,2]
[351725846,1738767038084,-500.0,9.895e-05,2]
[351725848,1738767038094,-311.75297254,9.895e-05,2]
[351725849,1738767038103,-500.0,9.895e-05,2]
[351725851,1738767038112,-500.0,9.895e-05,2]
[351725853,1738767038122,-500.0,9.895e-05,2]
[351725855,1738767038131,-500.0,9.895e-05,2]
[351725857,1738767038141,-500.0,9.895e-05,2]
[351725858,1738767038153,-500.0,9.895e-05,2]
[351725860,1738767038163,-500.0,9.895e-05,2]
[351725862,1738767038173,-500.0,9.895e-05,2]
[351725864,1738767038182,-500.0,9.895e-05,2]
[351725865,1738767038192,-500.0,9.895e-05,2]
[351725867,1738767038202,-500.0,9.895e-05,2]
[351725869,1738767038212,-500.0,9.895e-05,2]
[351725871,1738767038221,-500.0,9.895e-05,2]
[351725872,1738767038231,-500.0,9.895e-05,2]
[351725874,1738767038241,-500.0,9.895e-05,2]
[351725876,1738767038251,-500.0,9.895e-05,2]
[351725878,1738767038260,-500.0,9.899e-05,2]
[351725880,1738767038270,-500.0,9.899e-05,2]
[351725881,1738767038279,-500.0,9.899e-05,2]
[351725883,1738767038289,-500.0,9.899e-05,2]
[351725885,1738767038299,-500.0,9.899e-05,2]
[351725887,1738767038308,-554.43,9.899e-05,2]
[351725889,1738767038317,-506.83,9.899e-05,2]
[351725890,1738767038327,-263.75,9.899e-05,2]
[351725892,1738767038336,-500.0,9.899e-05,2]
[351725894,1738767038346,-500.0,9.899e-05,2]
[351725896,1738767038355,-554.28,9.899e-05,2]
[351725897,1738767038365,-500.0,9.899e-05,2]
[351725899,1738767038375,-2000.0,9.9e-05,2]
[351725901,1738767038386,-9999.0,9.9e-05,5]
[351725904,1738767038396,-9999.0,9.9e-05,6]
[351725906,1738767038409,-1000.0,9.9e-05,2]
[351725908,1738767038419,-161.55,9.905e-05,2]
[351725910,1738767038428,-54943.76243675,9.931e-05,2]
[351725912,1738767038438,-530.53179976,9.933e-05,2]
[351725914,1738767038447,-500.0,9.934e-05,2]
[351725916,1738767038457,-500.0,9.934e-05,2]
[351725917,1738767038467,-502.1,9.934e-05,2]
[351725918,1738767038477,-500.0,9.934e-05,2]
[351725919,1738767038487,-500.0,9.934e-05,2]
[351725920,1738767038497,-596.67,9.934e-05,2]
[351725921,1738767038507,-500.0,9.934e-05,2]
[351725922,1738767038517,-500.0,9.934e-05,2]
[351725923,1738767038527,-500.0,9.934e-05,2]
[351725924,1738767038537,-500.0,9.934e-05,2]
[351725925,1738767038548,-500.0,9.934e-05,2]
[351725926,1738767038558,-1424.99906059,9.934e-05,2]
[351725927,1738767038569,-500.0,9.935e-05,2]
[351725928,1738767038579,-500.0,9.935e-05,2]
[351725929,1738767038589,-500.0,9.935e-05,2]
[351725930,1738767038600,-500.0,9.935e-05,2]
[351725931,1738767038610,-500.0,9.935e-05,2]
[351725932,1738767038619,-500.0,9.935e-05,2]
[351725933,1738767038629,-500.0,9.935e-05,2]
[351725934,1738767038640,-500.0,9.935e-05,2]
[351725935,1738767038650,-500.0,9.935e-05,2]
[351725936,1738767038661,-500.0,9.936e-05,2]
[351725937,1738767038671,-500.0,9.936e-05,2]
[351725938,1738767038682,-500.0,9.936e-05,2]
[351725939,1738767038693,-151.0,9.936e-05,2]
[351725940,1738767038704,-1424.99906059,9.937e-05,2]
[351725942,1738767038716,-200.0,9.939e-05,2]
[351725943,1738767038726,-559.24892763,9.942e-05,2]
[351725946,1738767038736,-559.24892763,9.949e-05,2]
[351725947,1738767038747,-1207.59148117,9.95e-05,2]
[351725949,1738767038757,-54943.76243675,9.95e-05,2]
[351725951,1738767038767,-1602.20291522,9.952e-05,2]
[351725954,1738767038777,-200.0,9.952e-05,2]
[351725956,1738767038786,-54943.76243675,9.954e-05,2]
[351725958,1738767038796,-8490.585184,9.954e-05,2]
[351725959,1738767038806,-54943.76243675,9.957e-05,2]
[351725962,1738767038816,-1424.99906059,9.958e-05,2]
[351725964,1738767038826,-444.46847969,9.958e-05,2]
[351725965,1738767038836,-1938.70156604,9.96e-05,2]
[351725968,1738767038847,-2014.3,9.96e-05,2]
[351725969,1738767038857,-1207.59148117,9.962e-05,2]
[351725971,1738767038868,-1424.99906059,9.964e-05,2]
[351725973,1738767038882,-1602.20291522,9.965e-05,2]
[351725975,1738767038895,-1207.59148117,9.967e-05,2]
[351725977,1738767038907,-444.46847969,9.968e-05,2]
[351725980,1738767038917,-8490.585184,9.969e-05,2]
[351725981,1738767038928,-530.53179976,9.973e-05,2]
[351725983,1738767038938,-500.0,9.973e-05,2]
[351725985,1738767038948,-500.0,9.973e-05,2]
[351725988,1738767038960,-8490.585184,9.974e-05,2]
[351725990,1738767038970,-1602.20291522,9.974e-05,2]
[351725992,1738767038980,-200.0,9.976e-05,2]
[351725994,1738767038990,-530.53179976,9.976e-05,2]
[351725995,1738767039000,-1938.70156604,9.976e-05,2]
[351725998,1738767039010,-200.0,9.977e-05,2]
[351726000,1738767039020,-152.0,9.979e-05,3]
[351726002,1738767039030,-530.53179976,9.979e-05,2]
[351726004,1738767039039,-132666.96204913,9.98e-05,2]
[351726005,1738767039050,-559.24892763,9.984e-05,2]
[351726007,1738767039060,-200.0,9.985e-05,2]
[351726009,1738767039070,-1602.20291522,9.987e-05,2]
[351726011,1738767039080,-559.24892763,9.988e-05,2]
[351726013,1738767039090,-1938.70156604,9.988e-05,2]
[351726016,1738767039100,-1938.70156604,9.988e-05,2]
[351726018,1738767039111,-200.0,9.989e-05,2]
[351726020,1738767039120,-444.46847969,9.989e-05,2]
[351726022,1738767039130,-8490.585184,9.989e-05,2]
[351726024,1738767039140,-2000.0,9.99e-05,2]
[351726029,1738767039190,-151.0,9.992e-05,2]
[351726031,1738767039201,-1207.59148117,9.996e-05,2]
[351726033,1738767039210,-444.46847969,9.999e-05,2]
[351726035,1738767039220,-500.0,9.999e-05,2]
[351726037,1738767039230,-500.0,9.999e-05,2]
[351726039,1738767039240,-500.0,9.999e-05,2]
[351726041,1738767039250,-500.0,9.999e-05,2]
[351726043,1738767039260,-500.0,9.999e-05,2]
[351726045,1738767039269,-500.0,9.999e-05,2]
[351726047,1738767039278,-500.0,9.999e-05,2]
[351726049,1738767039287,-500.0,9.999e-05,2]
[351726051,1738767039297,-195.9,9.999e-05,2]
[351726053,1738767039307,-500.0,9.999e-05,2]
[351726055,1738767039316,-500.0,9.999e-05,2]
[351726057,1738767039325,-500.0,9.999e-05,2]
[351726059,1738767039334,-500.0,9.999e-05,2]
[351726061,1738767039344,-500.0,9.999e-05,2]
[351726063,1738767039354,-500.0,9.999e-05,2]
[351726065,1738767039364,-500.0,9.999e-05,2]
[351726067,1738767039373,-175.44,9.999e-05,2]
[351726069,1738767039382,-1304.0,0.0001,2]
[351726071,1738767039392,-16029.04256077,0.0001,2]
[351726097,1738767039614,-164911.92858126,0.0001,2]
[351726099,1738767039626,-1015.93366821,0.0001,2]
[351726101,1738767039637,-1026.58492519,0.0001,2]
[351726154,1738767040146,-500.0,9.88e-05,2]
[351726156,1738767040157,-30415.17467479,0.0001,2]
[351726158,1738767040169,-29653.2036,0.0001,2]
[351726160,1738767040181,-1000.0,0.0001,2]
[351726162,1738767040193,-850.18856646,0.0001,2]
[351726190,1738767040451,-28055.61000011,0.0001,2]
[351726192,1738767040462,-16522.59050407,0.0001,2]
[351726195,1738767040484,-841.41,0.0001,2]
[351726426,1738767042599,-200.04,9.797e-05,2]
[351726428,1738767042609,-500.0,9.88e-05,2]
[351726430,1738767042618,-285.765934,9.881e-05,2]
[351726433,1738767042629,-214.234066,9.881e-05,2]
[351726435,1738767042639,-41.76340551,0.0001,2]
[351726437,1738767042650,-1655.65,0.0001,2]
[351726439,1738767042664,-152684.17779396,0.0001,2]
[351726441,1738767042675,-895.46611966,0.0001,2]
[351726446,1738767042708,-937.32485512,0.0001,2]
[351726460,1738767042844,-545.59229972,0.0001,2]
[351726462,1738767042855,-166075.83074889,0.0001,2]
[351726465,1738767042866,-1769.651754,0.0001,2]
[351726617,1738767045546,-500.0,9.797e-05,2]
[351726618,1738767045556,-539.99,9.881e-05,2]
[351726619,1738767045567,-500.0,9.934e-05,2]
[351726620,1738767045577,-121566.05666783,0.0001,2]
[351726621,1738767045588,-1494.35,0.0001,2]
[351726622,1738767045695,-500.0,9.797e-05,2]
[351726623,1738767045705,-4327.86045042,0.0001,2]
[351726626,1738767305019,164.0,0.0001,30]
[351726627,1738767305334,164.0,0.00010632,30]
[351726628,1738767305657,164.0,0.00011263,30]
[351726629,1738767306021,164.0,0.00011895,30]
[351726630,1738767332218,3968.66980314,5.48e-05,7]
[351726631,1738767332335,555.32005062,5.48e-05,7]
[351726633,1738767604549,261.0,0.0001,30]
[351726634,1738767604837,261.0,0.00010632,30]
[351726635,1738767605178,261.0,0.00011263,30]
[351726636,1738767605511,261.0,0.00011895,30]
[351726637,1738767630785,150.0,0.00013926,120]
[351726638,1738767690918,150.0,0.00013626,120]
[351726639,1738767724831,500.0,0.0002,120]
[351726640,1738767727998,500.0,0.0002,120]
[351726641,1738767729476,500.0,0.0002,120]
[351726642,1738767730452,500.0,0.0002,120]
[351726643,1738767731435,500.0,0.0002,120]
[351726644,1738767732275,500.0,0.0002,120]
[351726645,1738767733292,500.0,0.0002,120]
[351726646,1738767733844,500.0,0.0002,120]
[351726647,1738767734697,500.0,0.0002,120]
[351726648,1738767735473,500.0,0.0002,120]
[351726649,1738767736248,500.0,0.0002,120]
[351726650,1738767737013,500.0,0.0002,120]
[351726651,1738767737796,500.0,0.0002,120]
[351726652,1738767738508,500.0,0.0002,120]
[351726653,1738767739267,500.0,0.0002,120]
[351726654,1738767740039,500.0,0.0002,120]
[351726655,1738767740737,500.0,0.0002,120]
[351726656,1738767741443,500.0,0.0002,120]
[351726657,1738767750824,150.0,0.00019131,120]
[351726658,1738767753232,500.0,0.0002,120]
[351726659,1738767754103,500.0,0.0002,120]
[351726660,1738767766920,484.98999999,0.0002,120]
[351726661,1738767771997,336.0,0.0002,120]
[351726665,1738767870792,150.0,0.00019888,120]
[351726667,1738767903437,209.0,0.0001,30]
[351726668,1738767904017,209.0,0.00010632,30]
[351726669,1738767904102,209.0,0.00011263,30]
[351726670,1738767904485,209.0,0.00011895,30]
[351726671,1738767931734,150.0,0.00015675,120]
[351726672,1738767991359,150.0,0.00016113,120]
[351726673,1738767996071,2511.04485855,9.998e-05,120]
[351726675,1738768050840,150.0,0.00016196,120]
[351726676,1738768110743,150.0,0.00017534,120]
[351726678,1738768170857,150.0,0.00019329,120]
[351726679,1738768205945,167.0,0.0001,30]
[351726680,1738768206336,167.0,0.00010632,30]
[351726681,1738768207340,167.0,0.00011263,30]
[351726682,1738768207667,167.0,0.00011895,30]
[351726684,1738768231515,150.0,0.00018741,120]
[351726691,1738768231704,-484.73778308,8.219e-05,2]
[351726692,1738768231716,-445.61213266,8.219e-05,2]
[351726693,1738768231776,-251.14008426,8.219e-05,2]
[351726694,1738768231787,-161.55,8.943e-05,2]
[351726695,1738768231796,-3.59258938,8.973e-05,2]
[351726696,1738768231807,-3375.12534414,8.973e-05,2]
[351726697,1738768231819,-73.62766648,8.973e-05,2]
[351726698,1738768231828,-195.4,8.995e-05,2]
[351726699,1738768231837,-1000.0,8.999e-05,2]
[351726700,1738768231848,-8566.18,9.019e-05,2]
[351726701,1738768231857,-900.0,9.3e-05,3]
[351726702,1738768231866,-1800.0,9.4e-05,3]
[351726703,1738768231876,-2700.0,9.5e-05,3]
[351726704,1738768231885,-3600.0,9.6e-05,3]
[351726705,1738768231894,-920.78703065,9.7e-05,3]
[351726706,1738768231904,-979.02,9.7e-05,3]
[351726707,1738768231962,-2700.19296935,9.7e-05,3]
[351726708,1738768231972,-500.0,9.797e-05,2]
[351726709,1738768231982,-500.0,9.797e-05,2]
[351726710,1738768231991,-645.23,9.797e-05,2]
[351726711,1738768232000,-721.49,9.797e-05,2]
[351726712,1738768232009,-513.24086824,9.797e-05,2]
[351726713,1738768232020,-122.38913176,9.797e-05,2]
[351726714,1738768232032,-766.74,9.797e-05,2]
[351726715,1738768232041,-500.0,9.797e-05,2]
[351726716,1738768232049,-500.0,9.797e-05,2]
[351726717,1738768232058,-580.88,9.797e-05,2]
[351726718,1738768232067,-840.77,9.797e-05,2]
[351726719,1738768232076,-738.2,9.797e-05,2]
[351726720,1738768232086,-726.07,9.797e-05,2]
[351726721,1738768232096,-882.84,9.797e-05,2]
[351726722,1738768232105,-500.0,9.797e-05,2]
[351726723,1738768232114,-256.63,9.797e-05,2]
[351726724,1738768232123,-500.0,9.797e-05,2]
[351726725,1738768232132,-770.25,9.797e-05,2]
[351726726,1738768232141,-500.0,9.797e-05,2]
[351726728,1738768232151,-500.0,9.797e-05,2]
[351726730,1738768232160,-500.0,9.797e-05,2]
[351726732,1738768232170,-707.36,9.797e-05,2]
[351726734,1738768232179,-799.7,9.797e-05,2]
[351726736,1738768232188,-795.17,9.797e-05,2]
[351726738,1738768232198,-500.0,9.797e-05,2]
[351726740,1738768232207,-910.36,9.797e-05,2]
[351726742,1738768232216,-1167.75,9.797e-05,2]
[351726744,1738768232226,-1433.79,9.797e-05,2]
[351726746,1738768232236,-1112.24,9.797e-05,2]
[351726748,1738768232251,-782.89,9.797e-05,2]
[351726750,1738768232260,-900.0,9.8e-05,3]
[351726752,1738768232270,-500.0,9.863e-05,2]